Cogmind - Beta 17 @@@ ROGUE MODE // 2026.07.27 @ 02:12:33 Player: TheSkyeDoctor Result: Destroyed by 7I-LQX(R) with Subdweller Beam Cannon Performance ------------- Evolutions (0) 0 Regions Visited (3) 600 Robots Destroyed (21) 105 Value Destroyed (381) 381 Prototype IDs (0) 0 Alien Tech Used (0) 0 Bonus (0) 0 TOTAL SCORE: 1086 Bonus ------- None Cogmind --------- Core Integrity 0/250 Matter 300/300 Energy 99/100 System Corruption 0% Temperature Cool (9) Movement Rolling (130) Ox2 Location -10/Subcaves Parts ------- > --- POWER (1) -------- (None) > --- PROPULSION (2) --- Subdweller Monowheel > --- UTILITY (2) ------ High-capacity Storage Unit Seismic Detector > --- WEAPON (2) ------- (None) > --- INVENTORY (20) --- Large Battery (200) Signal Interpreter Improved Terrain Scanner Targeting Computer Scrap Shield Thief Drone Bay Peak State ------------ > --- POWER ------------ Light Ion Engine > --- PROPULSION ------- Light Treads Subdweller Monowheel > --- UTILITY ---------- High-capacity Storage Unit Seismic Detector > --- WEAPON ----------- Light Assault Rifle Grenade Launcher > --- INVENTORY -------- Subdweller Monowheel Large Battery Signal Interpreter Improved Terrain Scanner Targeting Computer Thief Drone Bay [Rating: 9] Favorites ----------- Power Ion Engine Engine Ion Engine Propulsion Light Treads Treads Light Treads Wheel Subdweller Monowheel Utility Seismic Detector Device Seismic Detector Storage High-capacity Storage Unit Weapon Light Assault Rifle Energy Gun Medium Laser Ballistic Gun Light Assault Rifle Ballistic Cannon Battle Cannon Launcher Grenade Launcher Build | -11 -10 -10 -10 ------- Run | Yrd Mat Min Sub Slots Evolved . | . . . . Power . | . . . . Propulsion . | . . . . Utility . | . . . . Weapon . | . . . . Parts Attached 13 | 8 1 . 4 Power 2 | 2 . . . Engine 2 | 2 . . . Core . | . . . . Reactor . | . . . . Propulsion 4 | 2 . . 2 Treads 2 | 2 . . . Leg . | . . . . Wheel 2 | . . . 2 Hover . | . . . . Flight . | . . . . Utility 3 | 2 1 . . Device 1 | 1 . . . Storage 2 | 1 1 . . Processor . | . . . . Hackware . | . . . . Protection . | . . . . Artifact . | . . . . Weapon 4 | 2 . . 2 Energy Gun 1 | 1 . . . Energy Cannon . | . . . . Ballistic Gun 1 | 1 . . . Ballistic Cannon 1 | . . . 1 Launcher 1 | . . . 1 Special Weapon . | . . . . Impact Weapon . | . . . . Slashing Weapon . | . . . . Piercing Weapon . | . . . . Special Melee Weapon . | . . . . Unidentified Prototypes . | . . . . Parts Lost 9 | . . . 9 Power 2 | . . . 2 Propulsion 3 | . . . 3 Utility . | . . . . Weapon 4 | . . . 4 Highest Loss Streak 3 | . . . 3 To Critical Strikes . | . . . . Average Backups 5 | 1 4 6 6 Power . | . 1 1 . Propulsion . | . . . . Utility 3 | . 2 4 5 Weapon . | . . 1 . Tool/Special . | . . . . Unused Backups 6 | . . . 6 Power . | . . . . Propulsion . | . . . . Utility 6 | . . . 6 Weapon . | . . . . Tool/Special . | . . . . Average Slot Usage (%) 82 | . 100 100 70 Engine 10 | . 14 14 7 Treads 17 | . 28 28 10 Wheel 4 | . . . 7 Device 14 | . 14 14 14 Storage 14 | . 14 14 14 Energy Gun 7 | . 14 14 2 Ballistic Gun 11 | . 14 14 9 Ballistic Cannon 1 | . . . 2 Launcher 1 | . . . 1 Peak Build Rating 9 | 7 7 8 9 Average Rating 6 | 5 7 7 6 On Entrance 5 | . 7 7 8 Avg Prop Armor Cover (%) 12 | . . . 12 Naked Turns . | . . . . Heaviest Build 49 | 14 49 49 49 Greatest Support 40 | 40 40 40 40 Greatest Overweight (x) 2 | . 1 1 2 Average Overweight (x) 1 | . . 1 1 Largest Inventory Capacity 20 | 8 20 20 20 Average Capacity 17 | 7 14 20 20 Most Carried 8 | 2 6 7 8 Average Carried 5 | 1 4 6 7 Final Capacity 20 | 8 20 20 20 Final Carried 7 | 2 6 7 7 Class Distribution -------------------- 100% | Mutant Dominant Class ---------------- Mutant | -10/Materials Mutant | -10/Mines Mutant | -10/Subcaves Resources | -11 -10 -10 -10 ----------- Run | Yrd Mat Min Sub Matter Collected 460 | 305 15 . 140 Remotely . | . . . . Salvage Created 481 | 207 43 . 231 Parts 34 | 20 1 . 13 Haulers Intercepted . | . . . . Recyclers Shooed . | . . . . Parts Field Recycled . | . . . . Retrieved Matter . | . . . . Parts Self-Destructed 16 | . . . 16 Prevented . | . . . . Parts Restored . | . . . . Kills | -11 -10 -10 -10 ------- Run | Yrd Mat Min Sub Combat Hostiles Destroyed 10 | . . . 10 Guns 6 | . . . 6 Cannons 2 | . . . 2 AOE 2 | . . . 2 Classes Destroyed 7 | 2 2 . 3 Tunneler 8 | 8 . . . Recycler 1 | 1 . . . Operator 1 | . 1 . . Watcher 1 | . 1 . . Swarmer 4 | . . . 4 Grunt 1 | . . . 1 Subdweller 5 | . . . 5 Best Kill Streak 3 | 3 1 . 3 Combat Bots Only 3 | . . . 3 Max Kills in Single Turn 2 | 1 1 . 2 Gunslinging . | . . . . Exploded 2 | . . . 2 Melee . | . . . . Uniques/NPCs Destroyed . | . . . . Combat | -11 -10 -10 -10 -------- Run | Yrd Mat Min Sub Hostile Shots Fired 118 | . . . 118 Missed 36 | . . . 36 Hits 82 | . . . 82 Projectile 82 | . . . 82 Critical Strikes 1 | . . . 1 Damage Taken 1158 | . . . 1158 Core 250 | . . . 250 Absorbed by Shields . | . . . . Core Remaining (%) 100 | 100 . . . Volleys Fired 80 | 25 5 . 50 Largest 2 | 2 2 . 2 Hottest 70 | 70 70 . 70 Shots Fired 147 | 50 10 . 87 Gun 133 | 50 10 . 73 Cannon 11 | . . . 11 Launcher 3 | . . . 3 Special . | . . . . Kinetic 89 | 25 5 . 59 Thermal 55 | 25 5 . 25 Explosive 3 | . . . 3 Electromagnetic . | . . . . Robot Hit Streak 9 | 5 9 . 8 Robot Miss Streak 5 | 2 1 . 5 Penetration Max . | . . . . Secondary Targets 1 | . . . 1 Max Gunslinging Chain 1 | . . . 1 Shots Hit Robots 91 | 31 8 . 52 Core Hits 33 | 13 3 . 17 Critical Kills . | . . . . Critical Parts Destroyed . | . . . . Critical Strikes 4 | . 3 . 1 Burn 4 | . 3 . 1 Melee Attacks . | . . . . Impact . | . . . . Slashing . | . . . . Piercing . | . . . . Sneak Attacks . | . . . . Combat Hostiles . | . . . . Follow-up Attacks . | . . . . Damage Inflicted 1264 | 329 87 . 848 Guns 797 | 329 87 . 381 Cannons 178 | . . . 178 Explosions 289 | . . . 289 Melee . | . . . . Ramming . | . . . . Kinetic 544 | 124 25 . 395 Thermal 431 | 205 62 . 164 Explosive 289 | . . . 289 Electromagnetic . | . . . . Impact . | . . . . Slashing . | . . . . Piercing . | . . . . Highest Corruption . | . . . . Average Corruption . | . . . . Corruption Purged . | . . . . Corruption Blocked . | . . . . Overload Shots . | . . . . Overflow Damage . | . . . . Projectiles . | . . . . Explosions . | . . . . Melee . | . . . . Knockbacks 4 | . . . 4 Impact . | . . . . Kinetic 4 | . . . 4 Secondary . | . . . . Self-Inflicted Damage . | . . . . Shots . | . . . . Rammed . | . . . . Targets Rammed . | . . . . Kicked . | . . . . Crushed . | . . . . Highest Temperature 94 | 94 70 . 1 Average Temperature 33 | 34 32 . 1 Received Heat Transfer 171 | . . . 171 Siege Activations . | . . . . Martial Activations . | . . . . Shielding Activations . | . . . . Robots Disrupted . | . . . . Combat Hostiles . | . . . . Robots Corrupted . | . . . . Combat Hostiles . | . . . . Parts Fried . | . . . . Impact Corruptions . | . . . . Robots Melted . | . . . . Combat Hostiles . | . . . . Parts Melted 6 | 2 1 . 3 Heat Transferred 1554 | 592 407 . 555 Parts Sabotaged . | . . . . Parts Stolen . | . . . . Parts Stripped . | . . . . Power Chain Reactions . | . . . . Alert | -11 -10 -10 -10 ------- Run | Yrd Mat Min Sub Maximum Alert Level . | . . . . Low Security (%) 100 | 100 100 100 . Level 1 . | . . . . Level 2 . | . . . . Level 3 . | . . . . Level 4 . | . . . . Level 5 . | . . . . High Security . | . . . . Max Security . | . . . . Peak Influence 10 | 10 7 . . Initial . | . . . . Average . | 1 . . . Influence Increases 237 | 45 12 . 180 Destroy 0b10 Robot/C 100 | . . . 100 Destroy 0b10 Robot/NC 55 | 45 10 . . Destroy Leader 22 | . 2 . 20 Lose Combat Pursuer 60 | . . . 60 Influence Decreases 237 | 45 12 . 180 Time Decay 187 | 45 12 . 130 Lost Part 50 | . . . 50 Squads Dispatched . | . . . . Investigation . | . . . . Extermination . | . . . . Reinforcement . | . . . . Assault . | . . . . Garrison . | . . . . Intercept . | . . . . Searches Triggered . | . . . . Construction Impeded . | . . . . Haulers Reinforced . | . . . . Active Scanning Responses . | . . . . Cargo Convoy Interrupts . | . . . . Stealth | -11 -10 -10 -10 --------- Run | Yrd Mat Min Sub Distress Signals . | . . . . Communications Jammed . | . . . . Distress Signals . | . . . . Times Spotted 21 | . 2 . 19 Peak Tracking Total 8 | . 1 . 8 Tactical Retreats 1 | . . . 1 Traps | -11 -10 -10 -10 ------- Run | Yrd Mat Min Sub Traps Triggered . | . . . . Indirectly . | . . . . Trap Hack Attempts . | . . . . Triggered . | . . . . Disarmed . | . . . . Reprogrammed . | . . . . Reused . | . . . . Traps Extracted . | . . . . Installed . | . . . . Triggered . | . . . . Machines | -11 -10 -10 -10 ---------- Run | Yrd Mat Min Sub Machines Disabled . | . . . . Max in Single Turn . | . . . . Machines Repaired . | . . . . Machines Dismantled . | . . . . Machines Sabotaged . | . . . . Overloaded Fab Kills . | . . . . Hacking | -11 -10 -10 -10 --------- Run | Yrd Mat Min Sub Machines Accessed 1 | . . 1 . Terminals . | . . . . Fabricators . | . . . . Repair Stations . | . . . . Recycling Units . | . . . . Scanalyzers . | . . . . Garrison Access . | . . . . Total Hacks 1 | . . 1 . Successful 1 | . . 1 . Failed . | . . . . Catastrophic . | . . . . Database Lockouts . | . . . . Manual . | . . . . Terminals . | . . . . Fabricators . | . . . . Repair Stations . | . . . . Recycling Units . | . . . . Scanalyzers . | . . . . Garrison Access . | . . . . Terminal Hacks 1 | . . 1 . Open Door 1 | . . 1 . Fabricator Hacks . | . . . . Repair Station Hacks . | . . . . Recycling Unit Hacks . | . . . . Scanalyzer . | . . . . Garrison Access Hacks . | . . . . Unauthorized Hacks . | . . . . Terminals . | . . . . Fabricators . | . . . . Repair Stations . | . . . . Recycling Units . | . . . . Scanalyzers . | . . . . Garrison Access . | . . . . Data Cores Recovered 1 | . 1 . . Used . | . . . . Hacking Detections . | . . . . Full Trace Events . | . . . . Feedback Events . | . . . . Feedback Blocked . | . . . . Robot Schematics Acquired . | . . . . Robots Built . | . . . . Authchips . | . . . . Time . | . . . . Total Robot Build Rating . | . . . . Part Schematics Acquired . | . . . . Parts Built . | . . . . Authchips . | . . . . Time . | . . . . Total Part Build Rating . | . . . . Part Studies Acquired . | . . . . Parts Repaired . | . . . . Time . | . . . . Parts Recycled . | . . . . Recycled Matter . | . . . . Retrieved Matter . | . . . . Retrieved Components . | . . . . Parts Scanalyzed . | . . . . Part Schematics Acquired . | . . . . Parts Damaged . | . . . . Bothacking | -11 -10 -10 -10 ------------ Run | Yrd Mat Min Sub Used RIF Installer . | . . . . Robots Hacked . | . . . . Non-combat . | . . . . Combat . | . . . . Robot Hacks Applied . | . . . . Relay Couplers Released . | . . . . Fabnet Peak Effective % . | . . . . Robots Rewired . | . . . . Allies Hacked . | . . . . Hacks Repelled . | . . . . Allies | -11 -10 -10 -10 -------- Run | Yrd Mat Min Sub Total Allies . | . . . . Largest Group . | . . . . Highest-Rated Group . | . . . . Highest-Rated Ally . | . . . . Total Orders . | . . . . Ally Attacks . | . . . . Total Damage . | . . . . Kills . | . . . . Allies Corrupted . | . . . . Allies Melted . | . . . . Intel | -11 -10 -10 -10 ------- Run | Yrd Mat Min Sub Active Infowar (turns) 1476 | 12 256 302 906 Seismic 1476 | 12 256 302 906 Robot Analysis Total . | . . . . Derelict Logs Recovered 1 | . . 1 . Drone Launches . | . . . . Drone Recoveries . | . . . . Exploration | -11 -10 -10 -10 ------------- Run | Yrd Mat Min Sub Turns Passed 1761 | 297 256 302 906 Spaces Moved 829 | 139 121 122 447 Core 7 | 7 . . . Treads 486 | 132 121 122 111 Legs . | . . . . Wheels 336 | . . . 336 Hover . | . . . . Flight . | . . . . Fastest Speed 50 | 50 160 240 130 Average Speed 181 | 154 196 240 170 Slowest Speed 320 | 160 240 240 320 Overloaded Moves . | . . . . Propulsion Burnouts . | . . . . Robots Hopped . | . . . . Potential Cave-ins . | . . . . Cave-ins Triggered . | . . . . Exploration Rate (%) 19 | 6 20 22 28 Regions Visited 3 Branch Regions 2 Pre-discovered Areas 1 | . . 1 . Known Exits Taken . | . . . . Unknown Exits Taken 3 | 1 1 1 . Scrap Searched . | . . . . Spaces Dug . | . . . . Terrain Destroyed 3 | . . . 3 Melee . | . . . . Projectile . | . . . . AOE 3 | . . . 3 Terrain Rammed . | . . . . Walls Destroyed . | . . . . Machines Disabled . | . . . . Actions | -11 -10 -10 -10 --------- Run | Yrd Mat Min Sub Total 947 | 172 131 132 512 Wait 18 | . . 10 8 Move 826 | 138 120 121 447 Hop . | . . . . Pick Up 8 | 1 4 1 2 Fast Attach 9 | 7 . . 2 Attach 3 | . . . 3 Detach . | . . . . Swap 2 | 1 1 . . Drop 1 | . 1 . . Fire 80 | 25 5 . 50 Melee . | . . . . Ram . | . . . . Kick . | . . . . Crush . | . . . . Escape Stasis . | . . . . Rewire . | . . . . Trap . | . . . . Miscellaneous . | . . . . Route ------- -11/Scrapyard -10/Materials -10/Mines -10/Subcaves History --------- Turn | Location | Event 24 | -11/Scrapyard | Discovered new exit (range 14) 298 | -11/Scrapyard | Entered Materials 306 | -10/Materials | Discovered new exit (range 15) 307 | -10/Materials | Build established: Mutant 554 | -10/Materials | Entered Mines 602 | -10/Mines | Learned Materials terminal intel 697 | -10/Mines | Found the Drone Emporium 710 | -10/Mines | Found Prototype Device 811 | -10/Mines | Learned location of Storage (-9) 822 | -10/Mines | Discovered new exit (range 11) 856 | -10/Mines | Entered Subcaves 857 | -10/Subcaves | Approached by a straggling Scientist 1029 | -10/Subcaves | Core integrity fell below 50% 1399 | -10/Subcaves | Lost 3 parts (1p1n1w) 1432 | -10/Subcaves | Shifting Twisted Machinery released Sub. Machine Gun 1500 | -10/Subcaves | Core integrity fell below 20% 1535 | -10/Subcaves | Lost 3 parts (1n2w) 1762 | -10/Subcaves | Destroyed by 7I-LQX(R) with Subdweller Beam Cannon Last Messages --------------- 01498_ Lgt. Assault Rifle destroyed. 01498_ G-47 Trooper knocked back. 01500_ G-47 Trooper destroyed. 01502_ Battle Cannon destroyed. 01504_ Sub. Monowheel destroyed. 01511_ G-34 Mercenary destroyed. 01512_ Imp. Heat Sink fries itself beyond repair. 01519_ Aluminum Leg fries itself beyond repair. 01522_ Ion Engine fries itself beyond repair. 01535_ Subatomizers dissect the Sub. Machine Gun. 01583_ CY-1U4(O) collects matter. 01585_ Acquired 24 matter. 01587_ CY-1U4(O) collects matter. 01595_ CY-1U4(O) puts together Sub. Optics. 01598_ WA-O7L(R): "SUBMAD!" 01661_ Subatomizers dissect the Sub. Power Source. 01731_ Acquired 25 matter. Map ----- +----------------------------------------------------+ | | | | | ?????????????????????????????????????????????????? | | ?????????????????????????????????????????????????? | | ?????????????????????????????????????????????????? | | ?????????????????????????????????????????????????? | | ?????????????????????????????????????????????????? | | ?????????????????????????????????????????????????? | | ?????????????????????????????????????????????????? | | ?????????????????????????????????????????????????? | | ?????????????????????????????????????????????????? | | ?????????????????????????????????????????????????? | | ?????????????????????????????????????????????????? | | ?????????????????????????????????????????????????? | | ?????????????????????????????????????????????????? | | ?????????????????????????????????????????????????? | | ?????????????????????????????????????????????????? | | ???????????????#######???????????????????????????? | | ????????????? ## ##???????????????########### | | ?????????????? ##??????????#### # # | | ???????????????# #?###??????# | | ???????????###### ### ####??## | | ??????????## #??# #### ## | | ??????????# #??# #??### | | ??????????# ? #??## ##????# | | ???????????? ???#R@ #?????## ##???###### | | ?????????????? ??## ## ##???## #????????# | | ????????????????# ?# ##### #????????? | | ?????????????????# ### ## ##????????? | | ?????????????????# ## #????????## | | ?????????????????# ## #????? ### | | ?????????????????###### ## #### % #????? | | ??????????????????????# ######??# #????? | | ??????????????????????####???????# #?????# | | ?????????????????????????????????# #??????# | | ?????????????????????????????????#######??????# | | ?????????????????????????????????????????????## | | ?????????????????????????????????????????????# | | ?????????????????????????????????????????????# | | ??????????????????????????????????????????????# | | ??????????????????????????????????????????????## | | ???????????????????????????????????????????????### | | ?????????????????????????????????????????????????? | | ?????????????????????????????????????????????????? | | ???????????????????????????????????????????????### | | ??????????????????????????????????????????????## | | ?????????????????????????????????????????????## | | ??????????????????????????????????????????#### | | ??????????????????????????????????????##### | | ????????????????????????????????????###[# | +----------------------------------------------------+ Best States ------------- Heat Dissipation 25 Energy Generation 10 Energy Capacity 250 Matter Stores 300 Matter Capacity 300 Sight Range 16 Terrain Scan Density 10 Evasion (%) 40 Recoil Reduction 2 Item Schematics ----------------- None Robot Schematics ------------------ None Fabricated ------------ Nothing Repaired ---------- Nothing Studied --------- None Alien Tech Used ----------------- None Achievements -------------- None Challenges ------------ None Game ------ Seed NetworkedLaserScythe Manual? 0 Play Time 00:09:45 Cumulative 138.4 hours Start 2026.07.27 @ 02:06:09 End 2026.07.27 @ 02:12:33 Sessions 1 Manual Loads 0 Difficulty Rogue Special Mode None Game No. 286 Rogue 286 Adventurer 0 Explorer 0 Win Type - Total 1 Types 1/0/0/0/0/0/0/0/0/0 Lore% 55 Gallery% 55 Achievement% 43 Wizard Run 0 Options --------- Layout 2 ASCII 0 Keyboard 1 Movement Arrows Keybinds 0 Fullscreen 1 Font 24/Smallcaps Map View 50x44 Zoom Use 0% Tactical HUD 1 Map Filters NONE Filters NONE Steam 1 RUN: 5426eb12-bf70-4253-abd8-abb0b161c355